fUSD/lending_fUSD_20250618
["ID","MTS","AMOUNT","RATE_DAILY","PERIOD"]
[366483304,1750283440136,-240.14169256,0.00019726,2]
[366483306,1750283440146,-2776.19040761,0.000199,2]
[366483321,1750283440278,-882.6299999,0.000199,2]
[366483323,1750283440290,-10497.0,0.000199,2]
[366483557,1750283442698,-10601.0,0.000199,2]
[366483593,1750283443036,-5309.39999988,0.000199,2]
[366483598,1750283443082,-2593.20329261,0.000199,2]
[366483600,1750283443092,-1000.0,0.000199,2]
[366483602,1750283443102,-2021.26115826,0.000199,2]
[366483604,1750283443112,-160.79212959,0.000199,2]
[366483606,1750283443122,-2346.82655688,0.000199,2]
[366483608,1750283443132,-500.0,0.000199,7]
[366483611,1750283443142,-905.94,0.000199,2]
[366483615,1750283443152,-177.15959504,0.000199,2]
[366483618,1750283443161,-492.70851532,0.000199,2]
[366483620,1750283443171,-868.48676193,0.0001993,2]
[366483622,1750283443180,-159.53003897,0.00019943,2]
[366483624,1750283443189,-500.0,0.00019973,2]
[366483626,1750283443199,-183.56555904,0.0001998,2]
[366483628,1750283443208,-151.0,0.00019988,2]
[366483630,1750283443218,-500.0,0.00019988,2]
[366483632,1750283443228,-151.0,0.00019988,2]
[366483635,1750283443237,-500.0,0.00019988,2]
[366483637,1750283443247,-500.0,0.00019988,2]
[366483639,1750283443257,-500.0,0.00019988,2]
[366483641,1750283443266,-500.0,0.00019988,2]
[366483643,1750283443276,-500.0,0.00019988,2]
[366483645,1750283443286,-500.0,0.00019988,2]
[366483647,1750283443295,-151.0,0.00019988,2]
[366483649,1750283443304,-363.00955216,0.00019988,2]
[366483651,1750283443313,-151.0,0.00019988,2]
[366483653,1750283443323,-151.0,0.00019988,2]
[366483655,1750283443331,-300.0,0.00019988,2]
[366483657,1750283443341,-150.37,0.0001999,2]
[366483659,1750283443350,-189.26962724,0.00019999,2]
[366483661,1750283443361,-450.0,0.00019999,2]
[366483663,1750283443370,-500.0,0.00019999,2]
[366483664,1750283443380,-479.97983727,0.00019999,2]
[366483666,1750283443390,-113347.80254234,0.0002,2]
[366483742,1750283444237,-5223.60122936,0.0002,2]
[366483898,1750283445706,-2877.0667057,0.0002,2]
[366483904,1750283445832,-16278.06650019,0.0002,2]
[366483912,1750283445903,-848.3419997,0.0002,2]
[366484246,1750283510537,6529.6,0.000161,2]
[366484250,1750283771637,202.0,0.00015417,2]
[366484257,1750284132005,202.0,0.00015903,2]
[366484262,1750284330484,231.58,0.00013699,2]
[366484265,1750284488476,1342.46042318,0.00024657,120]
[366484267,1750284555276,-202.0,0.00016424,2]
[366484269,1750284622818,150.0,0.00018001,29]
[366484285,1750284632144,-488.78533752,0.00016903,2]
[366484288,1750284632158,-11.21466248,0.00016903,2]
[366484290,1750284632170,-234.52939174,0.00016903,2]
[366484292,1750284632182,-202.0,0.0001798,4]
[366484294,1750284632192,-250.0,0.00018059,2]
[366484296,1750284632203,-864.09,0.00019256,2]
[366484298,1750284632214,-833.92080167,0.0001949,2]
[366484299,1750284632224,-1200.0,0.00019499,2]
[366484301,1750284632237,-495.15,0.00019499,2]
[366484303,1750284632248,-495.4,0.00019499,2]
[366484306,1750284632259,-2000.0,0.000195,2]
[366484308,1750284632270,-506.08,0.000195,2]
[366484310,1750284632281,-509.47,0.000195,2]
[366484312,1750284632293,-494.92,0.000195,2]
[366484314,1750284632303,-503.6,0.000195,2]
[366484316,1750284632315,-492.47,0.000195,2]
[366484318,1750284632325,-498.42,0.000195,2]
[366484321,1750284632337,-499.42,0.000195,2]
[366484323,1750284632348,-496.68,0.000195,2]
[366484325,1750284632359,-496.83,0.000195,2]
[366484327,1750284632370,-495.05,0.000195,2]
[366484329,1750284632381,-491.03,0.000195,2]
[366484331,1750284632391,-505.7,0.000195,2]
[366484333,1750284632401,-490.84,0.000195,2]
[366484335,1750284632412,-493.34,0.000195,2]
[366484338,1750284632423,-202.0,0.00019536,6]
[366484340,1750284632434,-436.17548687,0.000197,7]
[366484342,1750284632447,-563.82451313,0.000197,7]
[366484344,1750284632457,-1000.0,0.00019719,2]
[366484346,1750284632468,-159.06097,0.000198,2]
[366484349,1750284632478,-2100.0,0.000198,7]
[366484351,1750284632489,-2371.71523555,0.00019899,2]
[366484353,1750284632500,-160.79212959,0.00019899,2]
[366484355,1750284632510,-18469.13113405,0.000199,2]
[366484357,1750284632523,-2839.85367162,0.000199,2]
[366484360,1750284632536,-3402.19609433,0.000199,2]
[366484362,1750284632546,-937.5142,0.000199,2]
[366484364,1750284632556,-231.467,0.000199,2]
[366484366,1750284632566,-21.30605072,0.000199,2]
[366484368,1750284632578,-138.22398824,0.000199,2]
[366484370,1750284632589,-3100.0,0.000199,7]
[366484373,1750284632599,-510.06101776,0.000199,2]
[366484375,1750284632610,-177.15959504,0.000199,2]
[366484377,1750284632620,-868.48676193,0.00019963,2]
[366484379,1750284632631,-502.2306243,0.00019973,2]
[366484381,1750284632641,-231.53506903,0.00019973,2]
[366484383,1750284632651,-500.0,0.00019973,2]
[366484385,1750284632662,-554.65401563,0.00019973,2]
[366484387,1750284632673,-500.0,0.00019973,2]
[366484390,1750284632683,-500.0,0.00019973,2]
[366484392,1750284632694,-500.0,0.00019973,2]
[366484394,1750284632705,-152.32648016,0.00019973,2]
[366484396,1750284632715,-500.0,0.00019973,2]
[366484398,1750284632726,-500.0,0.00019973,2]
[366484400,1750284632738,-151.0,0.00019987,2]
[366484402,1750284632748,-151.0,0.00019987,2]
[366484404,1750284632760,-151.0,0.00019987,2]
[366484406,1750284632771,-188.0,0.00019987,2]
[366484409,1750284632782,-177.36,0.0001999,2]
[366484411,1750284632793,-177.36,0.0001999,2]
[366484413,1750284632803,-177.36,0.0001999,2]
[366484415,1750284632814,-177.36,0.0001999,2]
[366484417,1750284632825,-150.45,0.0001999,2]
[366484419,1750284632836,-150.45,0.0001999,2]
[366484422,1750284632847,-170.6698709,0.0001999,2]
[366484424,1750284632858,-666.0,0.00019999,2]
[366484426,1750284632868,-150.0,0.00019999,2]
[366484428,1750284632879,-289.55125305,0.00019999,2]
[366484430,1750284632891,-576.455347,0.00019999,2]
[366484432,1750284632902,-221.76198832,0.00019999,2]
[366484435,1750284632912,-316.9967087,0.00019999,2]
[366484437,1750284632922,-197.24190227,0.00019999,2]
[366484442,1750284632959,-302.75809773,0.00019999,2]
[366484444,1750284632969,-500.0,0.00019999,2]
[366484446,1750284632982,-345.92128164,0.00019999,2]
[366484448,1750284632993,-500.0,0.00019999,2]
[366484451,1750284633005,-500.0,0.00019999,2]
[366484453,1750284633016,-466.65692583,0.00019999,2]
[366484455,1750284633026,-500.0,0.00019999,2]
[366484517,1750284633037,-11459.84922708,0.00019999,2]
[366484523,1750284633658,-246844.7045944,0.00019999,2]
[366484527,1750284633691,-2275.87269152,0.00019999,2]
[366484530,1750284633709,-2481.36558463,0.00019999,2]
[366484532,1750284633721,-2381.04070713,0.00019999,2]
[366484535,1750284633733,-4614.66753364,0.00019999,2]
[366484538,1750284633784,-549.3,0.00019999,2]
[366484539,1750284633869,-10892.30218573,0.00019999,2]
[366484875,1750284637718,-500.0,0.00019998,2]
[366484877,1750284637728,-500.0,0.00019998,2]
[366484878,1750284637739,-297.88597835,0.00019998,2]
[366484879,1750284637749,-353.16891668,0.00019998,2]
[366484880,1750284637758,-500.0,0.00019998,2]
[366484881,1750284637768,-393.47657323,0.00019998,2]
[366484882,1750284637778,-3332.35997785,0.00019999,2]
[366484883,1750284637790,-522.27499128,0.00019999,2]
[366484884,1750284637840,-517.17495246,0.00019999,2]
[366484885,1750284637851,-588.73150695,0.00019999,2]
[366484886,1750284637862,-630.31900023,0.00019999,2]
[366484887,1750284637874,-959.51539878,0.00019999,2]
[366484888,1750284638016,-715.34389114,0.00019999,2]
[366484889,1750284638074,-460.32,0.00019999,2]
[366485093,1750284639848,-16996.71713569,0.00019999,2]
[366485095,1750284639860,-260763.814051,0.00019999,2]
[366485097,1750284639869,-35361.08643304,0.0002,2]
[366485107,1750284639943,-12781.28368965,0.0002,2]
[366485133,1750284640073,-14116.60426,0.0002,2]
[366485137,1750284640085,-3594.81885109,0.0002,2]
[366485140,1750284640100,-2684.47178802,0.0002,2]
[366485143,1750284640111,-21916.04077219,0.0002,2]
[366485146,1750284640122,-1292.6877954,0.0002,2]
[366485150,1750284640135,-3368.4757258,0.0002,2]
[366485153,1750284640147,-760.86,0.0002,2]
[366485172,1750284640231,-3991.33602761,0.0002,2]
[366485504,1750284643018,-527.905704,0.0002,2]
[366485508,1750284643046,-689208.50232114,0.0002,2]
[366485510,1750284643055,-4546.66847748,0.0002,2]
[366485512,1750284643065,-1098.52125499,0.0002,2]
[366485514,1750284643075,-13133.52,0.0002,2]
[366485517,1750284643085,-403505.40964168,0.0002,2]
[366485519,1750284643098,-4000.0,0.0002,4]
[366485522,1750284643109,-231.58,0.00020187,2]
[366485523,1750284643118,-150.0,0.00020455,2]
[366485524,1750284643128,-510.06101758,0.00020486,3]
[366485525,1750284643139,-185.5,0.00020548,2]
[366485526,1750284643148,-2371.71523549,0.00020788,2]
[366485527,1750284643157,-159.06098,0.000208,2]
[366485528,1750284643166,-8652.49,0.00020951,2]
[366485529,1750284643175,-150.99,0.00020951,2]
[366485530,1750284643184,-7287.6,0.00020951,2]
[366485531,1750284643194,-4000.0,0.00021,4]
[366485532,1750284643203,-510.06101758,0.00021072,4]
[366485533,1750284643212,-202.0,0.00021092,8]
[366485534,1750284643221,-173.18,0.00021287,2]
[366485536,1750284643231,-150.0,0.00021369,2]
[366485538,1750284643243,-510.06101758,0.00021659,5]
[366485540,1750284643253,-2371.71523549,0.00021677,2]
[366485542,1750284643262,-566.0,0.000217,2]
[366485544,1750284643273,-150.0,0.00021825,2]
[366485546,1750284643283,-150.0,0.00021918,2]
[366485548,1750284643292,-2006.0,0.00021918,4]
[366485550,1750284643302,-746.69,0.00022,2]
[366485552,1750284643312,-13133.52,0.00022,2]
[366485554,1750284643322,-150.0,0.00022,2]
[366485556,1750284643331,-150.0,0.00022,2]
[366485558,1750284643341,-150.0,0.00022,2]
[366485560,1750284643350,-255.00578496,0.00022,2]
[366485562,1750284643360,-150.0,0.00022,2]
[366485564,1750284643370,-151.94070941,0.00022,2]
[366485566,1750284643379,-150.0,0.00022,2]
[366485568,1750284643389,-150.0,0.00022,2]
[366485570,1750284643398,-150.0,0.00022,2]
[366485572,1750284643407,-150.0,0.00022,2]
[366485574,1750284643417,-150.0,0.00022,2]
[366485576,1750284643426,-150.0,0.00022,2]
[366485578,1750284643436,-150.0,0.00022,2]
[366485580,1750284643445,-198.69561,0.00022,2]
[366485582,1750284643455,-150.0,0.00022,2]
[366485584,1750284643464,-150.0,0.00022,2]
[366485586,1750284643474,-150.0,0.00022,2]
[366485588,1750284643483,-150.0,0.00022,2]
[366485590,1750284643494,-150.0,0.00022,2]
[366485592,1750284643504,-150.0,0.00022,2]
[366485594,1750284643513,-150.0,0.00022,2]
[366485596,1750284643523,-150.0,0.00022,2]
[366485598,1750284643532,-292.0,0.00022,2]
[366485600,1750284643541,-150.0,0.00022,2]
[366485602,1750284643551,-150.0,0.00022,2]
[366485604,1750284643561,-453.0,0.00022,2]
[366485606,1750284643570,-150.0,0.00022,2]
[366485608,1750284643580,-150.0,0.00022,2]
[366485611,1750284643591,-150.0,0.00022,2]
[366485613,1750284643600,-150.0,0.00022,2]
[366485615,1750284643610,-150.0,0.00022,2]
[366485617,1750284643620,-278.49168584,0.00022,2]
[366485619,1750284643630,-152.44665257,0.00022,2]
[366485621,1750284643639,-150.0,0.00022,2]
[366485623,1750284643649,-150.0,0.00022,2]
[366485625,1750284643658,-4000.0,0.00022,4]
[366485627,1750284643671,-174.0,0.00022,2]
[366485629,1750284643680,-150.0,0.00022027,2]
[366485631,1750284643690,-150.0,0.00022027,2]
[366485633,1750284643699,-150.0,0.00022027,2]
[366485635,1750284643709,-150.0,0.00022027,2]
[366485637,1750284643718,-150.0,0.00022027,2]
[366485639,1750284643728,-150.0,0.00022027,2]
[366485641,1750284643737,-150.0,0.00022027,2]
[366485643,1750284643747,-150.0,0.00022027,2]
[366485645,1750284643757,-150.41739072,0.00022027,2]
[366485647,1750284643767,-150.0,0.00022027,2]
[366485649,1750284643776,-150.0,0.00022027,2]
[366485651,1750284643786,-150.0,0.00022027,2]
[366485653,1750284643795,-150.0,0.00022027,2]
[366485655,1750284643805,-150.0,0.00022027,2]
[366485657,1750284643814,-150.0,0.00022027,2]
[366485659,1750284643823,-200.0,0.00022055,2]
[366485661,1750284643833,-200.0,0.00022055,2]
[366485663,1750284643842,-200.0,0.00022055,2]
[366485665,1750284643851,-200.0,0.00022055,2]
[366485667,1750284643861,-200.0,0.00022055,2]
[366485669,1750284643870,-200.43175377,0.00022055,2]
[366485671,1750284643879,-200.0,0.00022055,2]
[366485673,1750284643889,-200.0,0.00022055,2]
[366485675,1750284643898,-150.0,0.00022055,2]
[366485677,1750284643908,-200.0,0.00022055,2]
[366485679,1750284643917,-200.0,0.00022055,2]
[366485681,1750284643927,-200.0,0.00022055,2]
[366485683,1750284643936,-200.0,0.00022082,2]
[366485685,1750284643945,-1000.0,0.00022184,2]
[366485687,1750284643955,-453.0,0.00022192,7]
[366485689,1750284643964,-2000.0,0.000222,2]
[366485691,1750284643974,-510.06101758,0.00022245,6]
[366485693,1750284643984,-163.59,0.00022278,2]
[366485695,1750284643994,-160.79212959,0.00022308,2]
[366485697,1750284644004,-453.0,0.00022466,7]
[366485699,1750284644014,-150.0,0.00022495,2]
[366485701,1750284644024,-666.0,0.00022511,2]
[366485703,1750284644034,-151.0,0.00022537,2]
[366485705,1750284644044,-1957.856,0.00022537,2]
[366485707,1750284644054,-300.0,0.00022537,2]
[366485709,1750284644063,-500.0,0.00022537,2]
[366485711,1750284644073,-500.0,0.00022537,2]
[366485713,1750284644082,-500.0,0.00022537,2]
[366485715,1750284644097,-207.4,0.00022537,2]
[366485717,1750284644110,-1000.0,0.00022544,2]
[366485719,1750284644119,-2371.71523549,0.00022566,2]
[366485721,1750284644129,-1696.94288397,0.00022592,2]
[366485723,1750284644139,-202.0,0.00022649,10]
[366485725,1750284644148,-150.0,0.00022739,2]
[366485727,1750284644158,-453.0,0.0002274,7]
[366485729,1750284644167,-510.06101758,0.00022831,8]
[366485731,1750284644178,-150.9,0.00022854,2]
[366485733,1750284644189,-457.0,0.00023,7]
[366485735,1750284644198,-4000.0,0.00023,4]
[366485738,1750284644208,-453.0,0.00023014,7]
[366485740,1750284644217,-453.0,0.00023014,7]
[366485742,1750284644227,-150.0,0.00023071,2]
[366485744,1750284644237,-457.0,0.00023288,7]
[366485746,1750284644247,-1000.0,0.00023389,2]
[366485747,1750284644257,-510.06101758,0.00023417,9]
[366485749,1750284644267,-2371.71523549,0.00023455,2]
[366485751,1750284644276,-168.0,0.00023504,2]
[366485753,1750284644286,-457.0,0.00023562,7]
[366485755,1750284644295,-13133.52,0.000236,2]
[366485758,1750284644305,-151.0,0.000236,7]
[366485759,1750284644315,-238.140298,0.000236,7]
[366485761,1750284644325,-151.0,0.000236,7]
[366485763,1750284644335,-151.0,0.000236,7]
[366485765,1750284644344,-151.0,0.000236,7]
[366485768,1750284644354,-151.0,0.000236,7]
[366485770,1750284644363,-151.0,0.000236,7]
[366485772,1750284644373,-151.0,0.000236,7]
[366485774,1750284644382,-833.92080167,0.000236,7]
[366485775,1750284644392,-150.0,0.00023648,2]
[366485777,1750284644401,-173.18,0.00023653,2]
[366485779,1750284644411,-638.9,0.000238,7]
[366485781,1750284644420,-500.0,0.000238,7]
[366485783,1750284644430,-500.0,0.000238,7]
[366485785,1750284644441,-500.0,0.000238,7]
[366485787,1750284644451,-500.0,0.000238,7]
[366485789,1750284644460,-500.0,0.000238,7]
[366485791,1750284644470,-500.0,0.000238,7]
[366485793,1750284644479,-500.0,0.000238,7]
[366485795,1750284644489,-176.95,0.000238,7]
[366485797,1750284644498,-151.0,0.000238,7]
[366485799,1750284644508,-151.0,0.000238,7]
[366485801,1750284644518,-151.0,0.000238,7]
[366485803,1750284644528,-222.329741,0.000238,7]
[366485805,1750284644538,-151.0,0.000238,7]
[366485807,1750284644548,-1823.0,0.00023813,2]
[366485809,1750284644558,-457.0,0.00023836,7]
[366485810,1750284644567,-1422.06,0.00023836,2]
[366485811,1750284644577,-151.0,0.00023836,7]
[366485812,1750284644586,-181.23543338,0.000239,2]
[366485813,1750284644596,-181.23543324,0.000239,2]
[366485814,1750284644605,-181.23543324,0.000239,2]
[366485815,1750284644614,-181.23543324,0.000239,2]
[366485816,1750284644624,-181.23543324,0.000239,2]
[366485817,1750284644633,-181.23543324,0.000239,2]
[366485818,1750284644643,-181.23543324,0.000239,2]
[366485819,1750284644652,-181.23543324,0.000239,2]
[366485820,1750284644661,-181.23543324,0.000239,2]
[366485822,1750284644671,-181.23543324,0.000239,2]
[366485823,1750284644680,-156.587,0.00023906,2]
[366485824,1750284644690,-215.0738,0.00023906,2]
[366485825,1750284644699,-4000.0,0.00024,4]
[366485826,1750284644709,-151.0,0.00024,7]
[366485827,1750284644719,-510.06101758,0.00024003,10]
[366485828,1750284644728,-152.0,0.00024057,3]
[366485829,1750284644738,-1823.0,0.00024058,2]
[366485831,1750284644747,-150.0,0.00024109,2]
[366485833,1750284644756,-457.0,0.0002411,7]
[366485835,1750284644766,-1094.10828622,0.00024157,2]
[366485837,1750284644776,-1068.86375958,0.00024157,2]
[366485839,1750284644785,-1027.47416381,0.00024157,2]
[366485841,1750284644794,-1101.90883449,0.00024157,2]
[366485843,1750284644804,-946.95391827,0.00024157,2]
[366485845,1750284644813,-466.0,0.00024164,7]
[366485846,1750284644823,-457.0,0.00024164,7]
[366485847,1750284644833,-453.0,0.00024164,7]
[366485848,1750284644842,-202.0,0.00024205,12]
[366485849,1750284644852,-150.0,0.00024225,2]
[366485850,1750284644861,-1000.0,0.00024234,2]
[366485851,1750284644871,-157.598329,0.00024303,3]
[366485852,1750284644881,-1823.0,0.00024304,2]
[366485853,1750284644890,-2371.71523549,0.00024344,2]
[366485854,1750284644900,-150.0,0.00024525,2]
[366485855,1750284644910,-150.0,0.00024528,2]
[366485856,1750284644919,-150.0,0.00024544,2]
[366485857,1750284644928,-150.0,0.00024546,2]
[366485858,1750284644937,-1823.0,0.00024549,2]
[366485859,1750284644947,-636.60101606,0.00024549,2]
[366485860,1750284644957,-150.0,0.00024554,2]
[366485861,1750284644967,-150.0,0.00024576,2]
[366485862,1750284644976,-150.0,0.0002458,2]
[366485863,1750284644986,-510.06101758,0.0002459,11]
[366485864,1750284644996,-10402.33,0.000246,2]
[366485865,1750284645005,-151.137373,0.000246,7]
[366485866,1750284645015,-150.0,0.000246,2]
[366485867,1750284645024,-15832.13,0.000246,2]
[366485868,1750284645034,-150.0,0.00024601,2]
[366485869,1750284645044,-500.0,0.00024602,2]
[366485870,1750284645054,-200.0,0.00024602,2]
[366485871,1750284645063,-393.0,0.00024603,2]
[366485872,1750284645073,-1000.0,0.00024623,2]
[366485873,1750284645083,-150.0,0.00024627,2]
[366485874,1750284645096,-151.0,0.00024628,7]
[366485875,1750284645105,-151.0,0.00024628,7]
[366485876,1750284645115,-1000.0,0.00024649,2]
[366485877,1750284645124,-150.0,0.0002465,2]
[366485878,1750284645134,-1000.0,0.00024658,2]
[366485879,1750284645144,-441.28750387,0.00024658,2]
[366485880,1750284645154,-400.0,0.0002467,2]
[366485881,1750284645163,-156.99839329,0.00024673,2]
[366485882,1750284645173,-2000.0,0.00024676,2]
[366485883,1750284645183,-2000.0,0.00024676,2]
[366485884,1750284645193,-150.0,0.00024678,2]
[366485885,1750284645202,-1000.0,0.00024678,2]
[366485886,1750284645212,-1581.53,0.00024685,30]
[366485887,1750284645222,-800.0,0.00024685,2]
[366485888,1750284645232,-150.0,0.00024707,2]
[366485889,1750284645242,-150.0,0.00024716,2]
[366485890,1750284645252,-160.79212959,0.00024716,2]
[366485891,1750284645262,-150.0,0.00024741,2]
[366485892,1750284645271,-150.0,0.00024742,2]
[366485893,1750284645281,-1000.0,0.00024742,2]
[366485894,1750284645290,-300.0,0.00024752,2]
[366485895,1750284645300,-150.0,0.00024756,2]
[366485896,1750284645311,-162.566288,0.00024767,7]
[366485897,1750284645321,-9775.0,0.00024767,2]
[366485898,1750284645331,-300.0,0.0002477,2]
[366485899,1750284645340,-450.0,0.0002477,2]
[366485900,1750284645351,-500.0,0.00024773,2]
[366485901,1750284645361,-152.0,0.00024774,4]
[366485902,1750284645371,-400.0,0.0002479,2]
[366485903,1750284645381,-150.45,0.0002479,2]
[366485904,1750284645391,-1823.0,0.00024794,2]
[366485905,1750284645401,-151.0,0.000248,7]
[366485906,1750284645410,-500.0,0.000248,9]
[366485907,1750284645420,-500.0,0.000248,9]
[366485908,1750284645430,-500.0,0.000248,9]
[366485909,1750284645441,-500.0,0.000248,9]
[366485910,1750284645451,-500.0,0.000248,9]
[366485911,1750284645460,-500.0,0.000248,9]
[366485912,1750284645469,-500.0,0.000248,9]
[366485913,1750284645479,-500.0,0.000248,9]
[366485914,1750284645489,-161.74833328,0.000248,9]
[366485915,1750284645498,-151.0,0.000248,7]
[366485919,1750284645806,-151.0,0.000248,7]
[366485920,1750284645817,-151.0,0.000248,7]
[366485921,1750284645826,-151.0,0.000248,7]
[366485922,1750284645835,-151.0,0.000248,7]
[366485923,1750284645845,-151.0,0.000248,7]
[366485924,1750284645855,-151.0,0.000248,7]
[366485925,1750284645865,-151.0,0.000248,7]
[366485926,1750284645875,-159.0,0.000248,11]
[366485927,1750284645884,-151.0,0.000248,7]
[366485928,1750284645894,-151.0,0.000248,7]
[366485929,1750284645904,-265085.29810415,0.000248,3]
[366485935,1750284646450,-292.37,0.00022343,2]
[366485936,1750284646459,-8412.10385922,0.000248,3]
[366485937,1750284646471,-10611.9057653,0.000248,3]
[366485940,1750284648574,-181.23543324,0.000239,2]
[366485941,1750284648584,-346086.87912233,0.000248,3]
[366485942,1750284648595,-222.329741,0.000248,7]
[366485943,1750284648606,-222.329741,0.000248,7]
[366485944,1750284648615,-151.0,0.000248,7]
[366485945,1750284648625,-217.216774,0.000248,7]
[366485946,1750284648634,-151.0,0.000248,7]
[366485947,1750284648643,-151.0,0.000248,7]
[366485948,1750284648653,-151.0,0.000248,7]
[366485949,1750284648663,-151.0,0.000248,7]
[366485950,1750284648672,-151.0,0.000248,7]
[366485951,1750284648682,-297.759292,0.000248,7]
[366485952,1750284648691,-833.92080167,0.000248,3]
[366485953,1750284648701,-151.0,0.000248,7]
[366485954,1750284648710,-150.0,0.00024802,2]
[366485955,1750284648720,-773.9148886,0.00024804,2]
[366485956,1750284648730,-31045.9129408,0.00024804,2]
[366485957,1750284648739,-5225.372107,0.00024804,2]
[366485958,1750284648749,-218.3451998,0.00024838,2]
[366485959,1750284648759,-500.0,0.00024873,2]
[366485960,1750284648769,-500.0,0.00024873,2]
[366485961,1750284648782,-500.0,0.00024873,2]
[366485962,1750284648792,-500.0,0.00024873,2]
[366485963,1750284648803,-751.5158677,0.00024883,2]
[366485964,1750284648813,-151.0,0.00024883,7]
[366485965,1750284648823,-37375.0797336,0.00024883,2]
[366485966,1750284648833,-6290.6412032,0.00024883,2]
[366485967,1750284648844,-150.45,0.0002489,2]
[366485968,1750284648854,-2000.0,0.000249,2]
[366485969,1750284648865,-13133.52,0.000249,2]
[366485970,1750284648875,-151.0,0.000249,7]
[366485971,1750284648885,-151.0,0.000249,7]
[366485972,1750284648895,-164.547428,0.000249,7]
[366485973,1750284648905,-4200.0,0.000249,9]
[366485974,1750284648915,-151.0,0.000249,7]
[366485975,1750284648924,-197.261872,0.000249,7]
[366485976,1750284648934,-151.0,0.000249,7]
[366485977,1750284648945,-167.063981,0.000249,7]
[366485978,1750284648956,-495230.52015837,0.000249,3]
[366485979,1750284648969,-1207.15849012,0.000249,3]
[366485980,1750284648982,-277.97063424,0.000249,3]
[366485981,1750284648995,-23557.72170355,0.000249,3]
[366485982,1750284649099,-1812.51836045,0.000249,3]
[366485983,1750284649111,-408.30563646,0.000249,3]
[366485984,1750284649123,-7076.15290752,0.000249,3]
[366485985,1750284649135,-6529.58614705,0.000249,3]
[366485986,1750284649147,-856.36107788,0.000249,3]
[366485995,1750285223503,150.0,0.00018001,29]
[366485998,1750285273469,3500.0,0.00018,30]
[366486004,1750285397576,208.42,0.00013699,2]
[366486005,1750285413408,150.0,0.00016101,2]
[366486010,1750285593104,-635.17190065,0.00016985,2]
[366486011,1750285593129,-250.0,0.00018015,2]
[366486012,1750285593152,-13.03874871,0.00018041,2]
[366486025,1750285824786,780.45431545,0.00016438,2]
[366486057,1750285832496,-441.681,0.00016438,2]
[366486083,1750285832723,-1455.67169055,0.00016438,2]
[366486088,1750285832830,-159.983057,0.00016438,2]
[366486090,1750285832840,-2677.807006,0.00016438,2]
[366486092,1750285832849,-160.730538,0.00016438,2]
[366486094,1750285832858,-952.57841649,0.00016931,2]
[366486097,1750285832886,-1725.22858951,0.00016931,2]
[366486099,1750285832896,-2677.807006,0.00017095,2]
[366486100,1750285832906,-3450.356063,0.00017325,2]
[366486102,1750285832915,-303.36,0.00017325,2]
[366486104,1750285832925,-301.96,0.00017325,2]
[366486106,1750285832935,-1200.0,0.00017411,2]
[366486108,1750285832944,-301.01,0.00017412,2]
[366486110,1750285832954,-305.37,0.00017412,2]